Cogmind - Beta 9.4 @@@ ROGUE MODE // 2020.02.03 @ 21:18:42 Player: alice_fexa Result: Self-destructed Performance ------------- Evolutions (2) 1000 Regions Visited (3) 600 Robots Destroyed (51) 255 Value Destroyed (1417) 1417 Prototype IDs (7) 140 Alien Tech Used (0) 0 Bonus (11) 11 TOTAL SCORE: 3423 Bonus ------- High Alert Combat Kills 11 Cogmind --------- Core Integrity 346/550 Matter 287/300 Energy 96/100 System Corruption 0% Temperature Cool (0) Movement Hovering (116) Ox1 Location -8/Materials Parts ------- > --- POWER (1) -------- (None) > --- PROPULSION (3) --- Improved Hover Unit Gravmag System > --- UTILITY (5) ------ Improved Heat Sink Small Storage Unit Medium Storage Unit Improved Sensor Array Improved Utility Shielding > --- WEAPON (2) ------- Gauss Rifle > --- INVENTORY (10) --- Light Deuterium Engine Improved Sensor Array Improved Sensor Array Hacking Suite Hacking Suite Improved Assault Rifle Gauss Rifle EMP Blaster Grenade Launcher Peak State ------------ > --- POWER ------------ Light Deuterium Engine > --- PROPULSION ------- Gravmag System Gravmag System Gravmag System > --- UTILITY ---------- Improved Heat Sink Small Storage Unit Medium Storage Unit Improved Sensor Array Improved Utility Shielding > --- WEAPON ----------- Greatsword > --- INVENTORY -------- Light Deuterium Engine Airjet Gravmag System Improved Sensor Array Hacking Suite Improved EM Shotgun Improved Assault Rifle EMP Blaster Grenade Launcher [Rating: 35] Favorites ----------- Power Light Nuclear Core Engine Improved Ion Engine Power Core Light Nuclear Core Propulsion Light Treads Treads Light Treads Hover Unit Gravmag System Utility Large Storage Unit Device Improved Heat Sink Storage Large Storage Unit Protection Light Armor Plating Weapon Light Cannon Energy Gun Medium Laser Ballistic Gun Assault Rifle Ballistic Cannon Light Cannon Launcher Grenade Launcher Slashing Weapon Greatsword Build | -11 -10 -9 -8 ------- Run | Scr Mat Mat Mat Slots Evolved 4 | . . 2 2 Power . | . . . . Propulsion 1 | . . 1 . Utility 3 | . . 1 2 Weapon . | . . . . Parts Attached 73 | 6 22 30 15 Power 5 | 1 1 3 . Engine 4 | 1 . 3 . Core 1 | . 1 . . Reactor . | . . . . Propulsion 23 | 2 7 9 5 Treads 15 | 2 7 6 . Leg . | . . . . Wheel . | . . . . Hover 8 | . . 3 5 Flight . | . . . . Utility 21 | 1 7 10 3 Device 5 | . . 3 2 Storage 11 | 1 7 3 . Processor . | . . . . Hackware . | . . . . Protection 5 | . . 4 1 Artifact . | . . . . Weapon 24 | 2 7 8 7 Energy Gun 9 | 1 3 3 2 Energy Cannon . | . . . . Ballistic Gun 7 | 1 . 3 3 Ballistic Cannon 3 | . 2 1 . Launcher 4 | . 2 1 1 Special Weapon . | . . . . Impact Weapon . | . . . . Slashing Weapon 1 | . . . 1 Piercing Weapon . | . . . . Special Melee Weapon . | . . . . Unidentified Prototypes 1 | . . 1 . Parts Lost 7 | . . 1 6 Power 2 | . . 1 1 Propulsion 3 | . . . 3 Utility . | . . . . Weapon 2 | . . . 2 Highest Loss Streak 3 | . . 1 3 Average Slot Usage (%) 98 | . 99 99 94 Engine 7 | . 6 8 9 Core 4 | . 7 2 . Treads 23 | . 27 29 . Hover 5 | . . 3 26 Device 3 | . . 1 18 Storage 23 | . 27 21 18 Protection 4 | . . 9 9 Energy Gun 11 | . 13 10 6 Ballistic Gun 6 | . 6 4 5 Ballistic Cannon 5 | . 6 6 . Naked Turns . | . . . . Heaviest Build 48 | 13 42 48 28 Greatest Support 60 | 40 40 60 33 Greatest Overweight (x) 2 | . 2 . 1 Average Overweight (x) . | . . . . Largest Inventory Capacity 20 | 6 16 20 10 Average Capacity 12 | 5 10 15 10 Most Carried 16 | 2 14 16 10 Average Carried 10 | . 8 14 9 Final Capacity 16 | 6 16 10 10 Final Carried 12 | 2 12 10 9 Class Distribution -------------------- 89% | Mutant 10% | Scavenger-Mutant Dominant Class ---------------- Mutant | -10/Materials Mutant | -9/Materials Mutant | -8/Materials Resources | -11 -10 -9 -8 ----------- Run | Scr Mat Mat Mat Matter Collected 1399 | 255 343 510 291 Remotely . | . . . . Salvage Created 1951 | . 545 1001 405 Parts 108 | . 34 49 25 Haulers Intercepted 3 | . 2 1 . Recyclers Shooed 3 | . 1 2 . Parts Field Recycled . | . . . . Retrieved Matter . | . . . . Parts Self-Destructed . | . . . . Prevented . | . . . . Kills | -11 -10 -9 -8 ------- Run | Scr Mat Mat Mat Combat Hostiles Destroyed 33 | . 10 17 6 Melee 1 | . . . 1 Guns 19 | . 5 9 5 Cannons 6 | . 2 4 . AOE 7 | . 3 4 . Classes Destroyed 11 | . 7 2 2 Worker 2 | . 1 1 . Builder 1 | . . . 1 Hauler 3 | . 2 1 . Recycler 6 | . 2 4 . Operator 1 | . 1 . . Watcher 5 | . 3 1 1 Swarmer 6 | . 3 3 . Grunt 12 | . 7 5 . Duelist 2 | . . 1 1 Sentry 11 | . . 8 3 Hunter 2 | . . . 2 Best Kill Streak 7 | . 3 7 3 Combat Bots Only 4 | . 2 4 2 Max Kills in Single Turn 3 | . 1 3 1 Gunslinging . | . . . . Exploded 3 | . 1 3 . Melee 1 | . . . 1 Uniques/NPCs Destroyed . | . . . . Combat | -11 -10 -9 -8 -------- Run | Scr Mat Mat Mat Damage Taken 2114 | . 373 942 799 Core 384 | . 29 151 204 Absorbed by Shields . | . . . . Core Remaining (%) 83 | 100 88 62 . Volleys Fired 125 | . 34 64 27 Largest 2 | . 2 2 2 Hottest 91 | . 85 91 78 Shots Fired 228 | . 62 121 45 Gun 172 | . 48 81 43 Cannon 46 | . 8 38 . Launcher 10 | . 6 2 2 Special . | . . . . Kinetic 122 | . 28 72 22 Thermal 47 | . 6 41 . Explosive 8 | . 6 2 . Electromagnetic 51 | . 22 6 23 Robot Hit Streak 21 | . 10 21 11 Robot Miss Streak 3 | . 3 2 3 Penetration Max 1 | . . . 1 Secondary Targets 1 | . . 1 . Max Gunslinging Chain 1 | . . 1 . Shots Hit Robots 175 | . 36 95 44 Core Hits 86 | . 29 38 19 Critical Hits 4 | . 1 . 3 Critical Kills 1 | . 1 . . Critical Parts Destroyed 2 | . . . 2 Melee Attacks 14 | . . . 14 Impact . | . . . . Slashing 14 | . . . 14 Piercing . | . . . . Sneak Attacks . | . . . . Combat Hostiles . | . . . . Follow-up Attacks . | . . . . Damage Inflicted 3910 | . 1083 1683 1144 Guns 2053 | . 380 1014 659 Cannons 536 | . 70 466 . Explosions 900 | . 628 203 69 Melee 416 | . . . 416 Ramming 5 | . 5 . . Kinetic 1400 | . 205 859 336 Thermal 820 | . 304 516 . Explosive 525 | . 374 151 . Electromagnetic 744 | . 195 157 392 Impact . | . . . . Slashing 416 | . . . 416 Piercing . | . . . . Highest Corruption . | . . . . Average Corruption . | . . . . Corruption Purged . | . . . . Overload Shots . | . . . . Overflow Damage 38 | . 26 8 4 Projectiles . | . . . . Explosions 34 | . 26 8 . Melee 4 | . . . 4 Knockbacks 1 | . . 1 . Impact . | . . . . Kinetic 1 | . . 1 . Secondary . | . . . . Self-Inflicted Damage 183 | . 168 15 . Shots 5 | . 4 1 . Rammed 1 | . 1 . . Targets Rammed 1 | . 1 . . Kicked . | . . . . Crushed . | . . . . Highest Temperature 216 | . 66 216 . Average Temperature 57 | . 19 70 . Received Heat Transfer 447 | . 66 300 81 Effects 2 | . . 2 . Energy Bleed 1 | . . 1 . Interference 1 | . . 1 . Siege Activations . | . . . . Robots Corrupted . | . . . . Combat Hostiles . | . . . . Parts Fried 4 | . . 1 3 Impact Corruptions . | . . . . Robots Melted . | . . . . Combat Hostiles . | . . . . Parts Melted 2 | . . 2 . Heat Transferred 1619 | . 348 1271 . Parts Sabotaged . | . . . . Parts Stolen . | . . . . Parts Stripped . | . . . . Power Chain Reactions 3 | . 2 1 . Missiles Intercepted . | . . . . Alert | -11 -10 -9 -8 ------- Run | Scr Mat Mat Mat Peak Influence 417 | . 177 417 405 Average Influence 123 | . 33 198 239 Maximum Alert Level 2 | . . 2 2 Low Security (%) 74 | 100 100 57 34 Level 1 23 | . . 38 60 Level 2 2 | . . 3 5 Level 3 . | . . . . Level 4 . | . . . . Level 5 . | . . . . High Security . | . . . . Max Security . | . . . . Squads Dispatched 2 | . 1 . 1 Investigation . | . . . . Extermination . | . . . . Reinforcement 2 | . 1 . 1 Assault . | . . . . Garrison . | . . . . Intercept . | . . . . Construction Impeded . | . . . . Haulers Reinforced . | . . . . Stealth | -11 -10 -9 -8 --------- Run | Scr Mat Mat Mat Distress Signals 7 | . 2 3 2 Communications Jammed . | . . . . Distress Signals . | . . . . Times Spotted 66 | . 23 24 19 Peak Tracking Total 6 | . 6 5 5 Tactical Retreats 10 | . 8 1 1 Traps | -11 -10 -9 -8 ------- Run | Scr Mat Mat Mat Traps Triggered 2 | . 2 . . Indirectly . | . . . . Trap Hack Attempts . | . . . . Triggered . | . . . . Disarmed . | . . . . Reprogrammed . | . . . . Reused . | . . . . Traps Extracted . | . . . . Installed . | . . . . Triggered . | . . . . Machines | -11 -10 -9 -8 ---------- Run | Scr Mat Mat Mat Machines Disabled 7 | . 4 2 1 Max in Single Turn 2 | . 2 1 1 Garrison Access 1 | . . . 1 Machines Sabotaged . | . . . . Garrisons Compromised . | . . . . Overloaded Fab Kills . | . . . . Fab Network Shutdowns . | . . . . Hacking | -11 -10 -9 -8 --------- Run | Scr Mat Mat Mat Machines Accessed 13 | . 6 5 2 Terminals 11 | . 6 4 1 Fabricators . | . . . . Repair Stations . | . . . . Recycling Units 1 | . . 1 . Scanalyzers . | . . . . Garrison Access 1 | . . . 1 Total Hacks 34 | . 16 14 4 Successful 21 | . 9 10 2 Failed 13 | . 7 4 2 Catastrophic . | . . . . Database Lockouts . | . . . . Manual 21 | . 11 7 3 Terminals 32 | . 16 13 3 Fabricators . | . . . . Repair Stations . | . . . . Recycling Units 1 | . . 1 . Scanalyzers . | . . . . Garrison Access 1 | . . . 1 Terminal Hacks 6 | . 2 4 . Prototype ID Bank 4 | . 1 3 . Branch Access Points 1 | . . 1 . Unreport Threat 1 | . 1 . . Fabricator Hacks . | . . . . Repair Station Hacks . | . . . . Recycling Unit Hacks 1 | . . 1 . Retrieve Components 1 | . . 1 . Scanalyzer . | . . . . Garrison Access Hacks 1 | . . . 1 Seal Access 1 | . . . 1 Unauthorized Hacks 29 | . 14 11 4 Terminals 12 | . 6 5 1 Track 9 | . 4 4 1 Botnet 3 | . 2 1 . Fabricators . | . . . . Repair Stations . | . . . . Recycling Units . | . . . . Scanalyzers . | . . . . Garrison Access . | . . . . Data Cores Recovered . | . . . . Used . | . . . . Hacking Detections 12 | . 6 5 1 Full Trace Events . | . . . . Feedback Events . | . . . . Feedback Blocked . | . . . . Robot Schematics Acquired . | . . . . Robots Built . | . . . . Matter . | . . . . Time . | . . . . Total Robot Build Rating . | . . . . Part Schematics Acquired . | . . . . Parts Built . | . . . . Matter . | . . . . Time . | . . . . Total Part Build Rating . | . . . . Parts Repaired . | . . . . Time . | . . . . Parts Recycled . | . . . . Recycled Matter . | . . . . Retrieved Matter . | . . . . Retrieved Components 10 | . . 10 . Parts Scanalyzed . | . . . . Part Schematics Acquired . | . . . . Parts Damaged . | . . . . Bothacking | -11 -10 -9 -8 ------------ Run | Scr Mat Mat Mat Used RIF Installer . | . . . . Robots Hacked . | . . . . Non-combat . | . . . . Combat . | . . . . Robot Hacks Applied . | . . . . Relay Couplers Released . | . . . . Robots Rewired . | . . . . Allies Hacked . | . . . . Hacks Repelled . | . . . . Allies | -11 -10 -9 -8 -------- Run | Scr Mat Mat Mat Total Allies . | . . . . Largest Group . | . . . . Highest-Rated Group . | . . . . Highest-Rated Ally . | . . . . Total Orders . | . . . . Ally Attacks . | . . . . Total Damage . | . . . . Kills . | . . . . Allies Corrupted . | . . . . Allies Melted . | . . . . Intel | -11 -10 -9 -8 ------- Run | Scr Mat Mat Mat Robot Analysis Total . | . . . . Derelict Logs Recovered . | . . . . Drone Launches . | . . . . Drone Recoveries . | . . . . Exploration | -11 -10 -9 -8 ------------- Run | Scr Mat Mat Mat Turns Passed 3226 | 72 1509 1105 540 Spaces Moved 1881 | 40 718 588 535 Core 2 | 2 . . . Treads 1172 | 38 718 416 . Legs . | . . . . Wheels . | . . . . Hover 707 | . . 172 535 Flight . | . . . . Fastest Speed 50 | 50 160 52 52 Average Speed 121 | 154 165 128 53 Slowest Speed 200 | 160 200 160 116 Overloaded Moves . | . . . . Propulsion Burnouts . | . . . . Robots Hopped . | . . . . Cave-ins Triggered . | . . . . Exploration Rate (%) 37 | 4 76 42 28 Regions Visited 3 Branch Regions . Pre-discovered Areas . | . . . . Known Exits Taken . | . . . . Unknown Exits Taken 3 | 1 1 1 . Scrap Searched . | . . . . Spaces Dug 2 | . . . 2 Terrain Destroyed 127 | . 99 26 2 Melee 2 | . . . 2 Projectile . | . . . . AOE 125 | . 99 26 . Actions | -11 -10 -9 -8 --------- Run | Scr Mat Mat Mat Total 2569 | 47 978 823 721 Wait 376 | . 179 85 112 Move 1878 | 39 717 587 535 Hop . | . . . . Pick Up 45 | 2 13 24 6 Fast Attach 28 | 6 7 9 6 Attach 12 | . 1 4 7 Detach 2 | . . . 2 Swap 33 | . 14 17 2 Drop 55 | . 12 33 10 Fire 125 | . 34 64 27 Melee 14 | . . . 14 Ram . | . . . . Kick . | . . . . Crush 1 | . 1 . . Escape Stasis . | . . . . Rewire . | . . . . Trap . | . . . . Miscellaneous . | . . . . Route ------- -11/Scrapyard -10/Materials (discovered 3 exits: *Mat x2 / [*Min]) -9/Materials (discovered 3 exits: *Mat x2 / Min) -8/Materials History --------- Turn | Location | Event 32 | -11/Scrapyard | Discovered new exit (range 14) 73 | -11/Scrapyard | Entered Materials 303 | -10/Materials | Build established: Mutant 840 | -10/Materials | Discovered new exit (range 15) 1106 | -10/Materials | Discovered new exit (range 11) 1236 | -10/Materials | Discovered new exit (range 4) 1582 | -10/Materials | Entered another Materials area 1582 | -9/Materials | Evolved 2 slots: Propulsion x1, Utility x1 1792 | -9/Materials | Identified exit to Mines 2209 | -9/Materials | Discovered new exit (range 4) 2525 | -9/Materials | Build established: Scavenger-Mutant 2684 | -9/Materials | Discovered new exit (range 7) 2687 | -9/Materials | Entered another Materials area 2687 | -8/Materials | Evolved 2 slots: Utility x2 2874 | -8/Materials | Build established: Mutant 3134 | -8/Materials | Lost 3 parts (2n1w) 3227 | -8/Materials | Self-destructed Last Messages --------------- 03198_ Slug penetrates L-31 Rogue. 03200_ U-05 Engineer repairs door. 03201_ Slug penetrates L-31 Rogue. 03206_ Gravmag System destroyed. 03207_ Slug penetrates Wall. 03213_ Imp. EM Shotgun destroyed. 03213_ Slug penetrates L-31 Rogue. 03213_ Destroyed Imp. Aluminum Leg. 03213_ U-05 Engineer destroyed. 03215_ Slug penetrates L-31 Rogue. 03215_ Melee Analysis Suite fried. 03215_ L-31 Rogue destroyed. 03217_ Slug penetrates Y-45 Defender. 03217_ Y-45 Defender suffers critical hit. 03221_ Destroyed Heat Sink. 03223_ U-05 Engineer builds a Door. 03223_ Lgt. Deuterium Engine destroyed. 03223_ Slug penetrates Y-45 Defender. 03223_ Y-45 Defender destroyed. 03225_ Acquired 56 matter. Map ----- +----------------------------------------------------+ | | | | | | | | | | | | | | | | | | | | | | | | | | | | | | | | | | | | | | | | | ????????########?????????????????????????????????? | | ????????# * #?????????????????????????????????? | | ????????# #####????##############???????????? | | ????????# """ #= ######=[ ????????? | | ######### """!%+|! !%/!* ????????? | | " """ #? ######@#### ##???????????????? | | # ## ##????#=#??????????????????????? | | ###/##### #?????#+#??????????????????????? | | #????? ??????????????????????? | | ###########+##### #?????!! ??????????????????????? | | ?????????# #?# #???? !! ?????????????????????? | | ?????????# #?# #???? ! ?????????????????????? | | ?????????# #?# #??? ????????????????????? | | ???#####?# #?? ???? """ ????????????????????? | | ???# #?# #??/???# """ #???????????????????? | | #### #?# #?? ???# """ #???????????????????? | | ? # #?# #??T???# ? #???????????????????? | | ?? #?# #?? ???# ??? #???????????????????? | | ??## #?# #??????#???? #???????????????????? | | ???# #?######???????????## #???????????????????? | | ??## ##???????????????????##???????????????????? | | ### ##########+###???????????????????????????? | | """??????????????????????????? | | "T"??????????????????????????? | | ???????????????????????? | | ### ###+###### ???????????????????????? | | ??###+#### ???????????????????????????????????? | | ??# # """ ?????????????????????????????????? | | ??# """ # """ #????????????????????????????????? | | ??# """ # """ #????????????????????????????????? | +----------------------------------------------------+ Best States ------------- Heat Dissipation 50 Energy Generation 14 Energy Capacity 650 Matter Stores 300 Matter Capacity 300 Sight Range 16 Robot Scan Range 13 Terrain Scan Density 10 Armor Coverage 150 Core Shielding 20 Utility Shielding 66 Evasion (%) 54 Recoil Reduction 3 Item Schematics ----------------- None Robot Schematics ------------------ None Fabricated ------------ Nothing Alien Tech Used ----------------- None Achievements -------------- None Challenges ------------ None Game ------ Seed HardcellAerolevStorage Manual? 0 Play Time 00:21:33 Cumulative 687.0 hours Start 2020.02.03 @ 20:58:24 End 2020.02.03 @ 21:18:42 Sessions 1 Manual Loads 0 Difficulty Rogue Special Mode None Game No. 630 Rogue 590 Adventurer 40 Explorer 0 Win Type - Total 60 Types 44/0/14/2/0/0/0 Lore% 89 Gallery% 92 Achievement% 71 Wizard Run 0 Options --------- ASCII 0 Keyboard 0 Movement Numpad Keybinds 0 Fullscreen 0 Font 16/Terminus Map View 76x50 Tactical HUD 1 Map Filters NONE Filters NONE Steam 1 RUN: 4b791ffd-ca3c-45a3-b9bc-4b775080af68